Workbook

Sheet fire works

Sheet calc
B1: Calculations for the fireworks. Do not edit | AH1: ="C"&AH2&" flower" -> C1 flower | AJ1: ="C"&AJ2&" flower" -> C2 flower | AL1: ="C"&AL2&" flower" -> C3 flower | AN1: ="C"&AN2&" flower" -> C4 flower | AP1: ="C"&AP2&" flower" -> C5 flower | AR1: ="C"&AR2&" flower" -> C6 flower | AT1: ="C"&AT2&" flower" -> C7 flower | AV1: ="C"&AV2&" flower" -> C8 flower | AX1: ="C"&AX2&" flower" -> C9 flower | AZ1: ="C"&AZ2&" flower" -> C10 flower
AH2: 1 | AI2: 1 | AJ2: 2 | AK2: 2 | AL2: 3 | AM2: 3 | AN2: 4 | AO2: 4 | AP2: 5 | AQ2: 5 | AR2: 6 | AS2: 6 | AT2: 7 | AU2: 7 | AV2: 8 | AW2: 8 | AX2: 9 | AY2: 9 | AZ2: 10 | BA2: 10
X4: 0 | Z4: =X4/100 -> 0
R5: Cracker Co-ords | W5: Last point Co-ords | Z5: Current Co-ords | AH5: C1 | AI5: C1 | AJ5: C2 | AK5: C2 | AL5: C3 | AM5: C3 | AN5: C4 | AO5: C4 | AP5: C5 | AQ5: C5 | AR5: C6 | AS5: c6 | AT5: c7 | AU5: c7 | AV5: c8 | AW5: c8 | AX5: c9 | AY5: c9 | AZ5: c10 | BA5: c10
B6: Deg | C6: Radians (θ) | D6: Sin θ | E6: Cos θ | S6: X1 | T6: Y1 | U6: Angle | V6: Max-Height | W6: X2 | X6: Y2 | Y6: Cur Pos | Z6: Cur-height | AA6: Xcur | AB6: Ycur | AC6: maxSize | AD6: curSize % | AE6: curSize | AG6: # | AH6: X1 | AI6: Y1 | AJ6: X2 | AK6: Y2 | AL6: X3 | AM6: Y3 | AN6: X4 | AO6: Y4 | AP6: X5 | AQ6: Y5 | AR6: X6 | AS6: Y6 | AT6: X7 | AU6: Y7 | AV6: X8 | AW6: Y8 | AX6: X9 | AY6: Y9 | AZ6: X10 | BA6: Y10
B7: 0 | C7: =RADIANS(B7) -> 0 | D7: =SIN($C7) -> 0 | E7: =COS($C7) -> 1 | R7: C1 | S7: 20 | T7: 0 | U7: 76 | V7: 90 | W7: =V7*SIN(RADIANS(90-U7))+S7 -> 41.7729706 | X7: =V7*COS(RADIANS(90-U7))+T7 -> 87.32661536 | Y7: 0 | Z7: =V7*Y7 -> 0 | AA7: =Z7*SIN(RADIANS(90-U7))+S7 -> 20 | AB7: =Z7*COS(RADIANS(90-U7))+T7 -> 0 | AC7: 15 | AD7: 0 | AE7: =AC7*AD7 -> 0 | AG7: 1 | AH7: =IF(MOD($AG7,2)=1,0,INDEX($D$7:$D$46,$AG7/2)*INDEX($AE$7:$AE$16,AH$2))+INDEX($W$7:$W$16,AH$2) -> 41.7729706 | AI7: =IF(MOD($AG7,2)=1,0,INDEX($E$7:$E$46,$AG7/2)*INDEX($AE$7:$AE$16,AI$2))+INDEX($X$7:$X$16,AI$2) -> 87.32661536 | AJ7: =IF(MOD($AG7,2)=1,0,INDEX($D$7:$D$46,$AG7/2)*INDEX($AE$7:$AE$16,AJ$2))+INDEX($W$7:$W$16,AJ$2) -> 108.8661519 | AK7: =IF(MOD($AG7,2)=1,0,INDEX($E$7:$E$46,$AG7/2)*INDEX($AE$7:$AE$16,AK$2))+INDEX($X$7:$X$16,AK$2) -> 79.2214455 | AL7: =IF(MOD($AG7,2)=1,0,INDEX($D$7:$D$46,$AG7/2)*INDEX($AE$7:$AE$16,AL$2))+INDEX($W$7:$W$16,AL$2) -> 17.79819602 | AM7: =IF(MOD($AG7,2)=1,0,INDEX($E$7:$E$46,$AG7/2)*INDEX($AE$7:$AE$16,AM$2))+INDEX($X$7:$X$16,AM$2) -> 139.4672577 | AN7: =IF(MOD($AG7,2)=1,0,INDEX($D$7:$D$46,$AG7/2)*INDEX($AE$7:$AE$16,AN$2))+INDEX($W$7:$W$16,AN$2) -> 0.5924383059 | AO7: =IF(MOD($AG7,2)=1,0,INDEX($E$7:$E$46,$AG7/2)*INDEX($AE$7:$AE$16,AO$2))+INDEX($X$7:$X$16,AO$2) -> 89.50697058 | AP7: =IF(MOD($AG7,2)=1,0,INDEX($D$7:$D$46,$AG7/2)*INDEX($AE$7:$AE$16,AP$2))+INDEX($W$7:$W$16,AP$2) -> 74.1868765 | AQ7: =IF(MOD($AG7,2)=1,0,INDEX($E$7:$E$46,$AG7/2)*INDEX($AE$7:$AE$16,AQ$2))+INDEX($X$7:$X$16,AQ$2) -> 79.89036278 | AR7: =IF(MOD($AG7,2)=1,0,INDEX($D$7:$D$46,$AG7/2)*INDEX($AE$7:$AE$16,AR$2))+INDEX($W$7:$W$16,AR$2) -> 100 | AS7: =IF(MOD($AG7,2)=1,0,INDEX($E$7:$E$46,$AG7/2)*INDEX($AE$7:$AE$16,AS$2))+INDEX($X$7:$X$16,AS$2) -> 140 | AT7: =IF(MOD($AG7,2)=1,0,INDEX($D$7:$D$46,$AG7/2)*INDEX($AE$7:$AE$16,AT$2))+INDEX($W$7:$W$16,AT$2) -> 112.5434156 | AU7: =IF(MOD($AG7,2)=1,0,INDEX($E$7:$E$46,$AG7/2)*INDEX($AE$7:$AE$16,AU$2))+INDEX($X$7:$X$16,AU$2) -> 119.3426274 | AV7: =IF(MOD($AG7,2)=1,0,INDEX($D$7:$D$46,$AG7/2)*INDEX($AE$7:$AE$16,AV$2))+INDEX($W$7:$W$16,AV$2) -> 52.20180398 | AW7: =IF(MOD($AG7,2)=1,0,INDEX($E$7:$E$46,$AG7/2)*INDEX($AE$7:$AE$16,AW$2))+INDEX($X$7:$X$16,AW$2) -> 139.4672577 | AX7: =IF(MOD($AG7,2)=1,0,INDEX($D$7:$D$46,$AG7/2)*INDEX($AE$7:$AE$16,AX$2))+INDEX($W$7:$W$16,AX$2) -> 16.35352414 | AY7: =IF(MOD($AG7,2)=1,0,INDEX($E$7:$E$46,$AG7/2)*INDEX($AE$7:$AE$16,AY$2))+INDEX($X$7:$X$16,AY$2) -> 125.5703574 | AZ7: =IF(MOD($AG7,2)=1,0,INDEX($D$7:$D$46,$AG7/2)*INDEX($AE$7:$AE$16,AZ$2))+INDEX($W$7:$W$16,AZ$2) -> 44.69095889 | BA7: =IF(MOD($AG7,2)=1,0,INDEX($E$7:$E$46,$AG7/2)*INDEX($AE$7:$AE$16,BA$2))+INDEX($X$7:$X$16,BA$2) -> 108.9294876
B8: 9 | C8: =RADIANS(B8) -> 0.1570796327 | D8: =SIN($C8) -> 0.156434465 | E8: =COS($C8) -> 0.9876883406 | R8: C2 | S8: 120 | T8: 0 | U8: 98 | V8: 80 | W8: =V8*SIN(RADIANS(90-U8))+S8 -> 108.8661519 | X8: =V8*COS(RADIANS(90-U8))+T8 -> 79.2214455 | Y8: 0 | Z8: =V8*Y8 -> 0 | AA8: =Z8*SIN(RADIANS(90-U8))+S8 -> 120 | AB8: =Z8*COS(RADIANS(90-U8))+T8 -> 0 | AC8: 15 | AD8: 0 | AE8: =AC8*AD8 -> 0 | AG8: 2 | AH8: =IF(MOD($AG8,2)=1,0,INDEX($D$7:$D$46,$AG8/2)*INDEX($AE$7:$AE$16,AH$2))+INDEX($W$7:$W$16,AH$2) -> 41.7729706 | AI8: =IF(MOD($AG8,2)=1,0,INDEX($E$7:$E$46,$AG8/2)*INDEX($AE$7:$AE$16,AI$2))+INDEX($X$7:$X$16,AI$2) -> 87.32661536 | AJ8: =IF(MOD($AG8,2)=1,0,INDEX($D$7:$D$46,$AG8/2)*INDEX($AE$7:$AE$16,AJ$2))+INDEX($W$7:$W$16,AJ$2) -> 108.8661519 | AK8: =IF(MOD($AG8,2)=1,0,INDEX($E$7:$E$46,$AG8/2)*INDEX($AE$7:$AE$16,AK$2))+INDEX($X$7:$X$16,AK$2) -> 79.2214455 | AL8: 17.79819602 | AM8: 139.4672577 | AN8: 0.5924383059 | AO8: 89.50697058 | AP8: 74.1868765 | AQ8: 79.89036278 | AR8: 100 | AS8: 140 | AT8: 112.5434156 | AU8: 119.3426274 | AV8: 52.20180398 | AW8: 139.4672577 | AX8: 16.35352414 | AY8: 125.5703574 | AZ8: 44.69095889 | BA8: 108.9294876
B9: 18 | C9: 0.3141592654 | D9: 0.3090169944 | E9: 0.9510565163 | R9: C3 | S9: 30 | T9: 0 | U9: 95 | V9: 140 | W9: 17.79819602 | X9: 139.4672577 | Y9: 0 | Z9: 0 | AA9: =Z9*SIN(RADIANS(90-U9))+S9 -> 30 | AB9: 0 | AC9: 20 | AD9: 0 | AE9: 0 | AG9: 3 | AH9: 41.7729706 | AI9: 87.32661536 | AJ9: 108.8661519 | AK9: 79.2214455 | AL9: 17.79819602 | AM9: 139.4672577 | AN9: 0.5924383059 | AO9: 89.50697058 | AP9: 74.1868765 | AQ9: 79.89036278 | AR9: 100 | AS9: 140 | AT9: 112.5434156 | AU9: 119.3426274 | AV9: 52.20180398 | AW9: 139.4672577 | AX9: 16.35352414 | AY9: 125.5703574 | AZ9: 44.69095889 | BA9: 108.9294876
B10: 27 | C10: 0.471238898 | D10: 0.4539904997 | E10: 0.8910065242 | R10: C4 | S10: 10 | T10: 0 | U10: 96 | V10: 90 | W10: 0.5924383059 | X10: 89.50697058 | Y10: 0 | Z10: 0 | AA10: =Z10*SIN(RADIANS(90-U10))+S10 -> 10 | AB10: 0 | AC10: 15 | AD10: 0 | AE10: 0 | AG10: 4 | AH10: 41.7729706 | AI10: 87.32661536 | AJ10: 108.8661519 | AK10: 79.2214455 | AL10: 17.79819602 | AM10: 139.4672577 | AN10: 0.5924383059 | AO10: 89.50697058 | AP10: 74.1868765 | AQ10: 79.89036278 | AR10: 100 | AS10: 140 | AT10: 112.5434156 | AU10: 119.3426274 | AV10: 52.20180398 | AW10: 139.4672577 | AX10: 16.35352414 | AY10: 125.5703574 | AZ10: 44.69095889 | BA10: 108.9294876
B11: 36 | C11: 0.6283185307 | D11: 0.5877852523 | E11: 0.8090169944 | R11: C5 | S11: 70 | T11: 0 | U11: 87 | V11: 80 | W11: 74.1868765 | X11: 79.89036278 | Y11: 0 | Z11: 0 | AA11: =Z11*SIN(RADIANS(90-U11))+S11 -> 70 | AB11: 0 | AC11: 25 | AD11: 0 | AE11: 0 | AG11: 5 | AH11: 41.7729706 | AI11: 87.32661536 | AJ11: 108.8661519 | AK11: 79.2214455 | AL11: 17.79819602 | AM11: 139.4672577 | AN11: 0.5924383059 | AO11: 89.50697058 | AP11: 74.1868765 | AQ11: 79.89036278 | AR11: 100 | AS11: 140 | AT11: 112.5434156 | AU11: 119.3426274 | AV11: 52.20180398 | AW11: 139.4672577 | AX11: 16.35352414 | AY11: 125.5703574 | AZ11: 44.69095889 | BA11: 108.9294876
B12: 45 | C12: 0.7853981634 | D12: 0.7071067812 | E12: 0.7071067812 | R12: C6 | S12: 100 | T12: 0 | U12: 90 | V12: 140 | W12: 100 | X12: 140 | Y12: 0 | Z12: 0 | AA12: =Z12*SIN(RADIANS(90-U12))+S12 -> 100 | AB12: 0 | AC12: 25 | AD12: 0 | AE12: 0 | AG12: 6 | AH12: 41.7729706 | AI12: 87.32661536 | AJ12: 108.8661519 | AK12: 79.2214455 | AL12: 17.79819602 | AM12: 139.4672577 | AN12: 0.5924383059 | AO12: 89.50697058 | AP12: 74.1868765 | AQ12: 79.89036278 | AR12: 100 | AS12: 140 | AT12: 112.5434156 | AU12: 119.3426274 | AV12: 52.20180398 | AW12: 139.4672577 | AX12: 16.35352414 | AY12: 125.5703574 | AZ12: 44.69095889 | BA12: 108.9294876
B13: 54 | C13: 0.9424777961 | D13: 0.8090169944 | E13: 0.5877852523 | R13: C7 | S13: 100 | T13: 0 | U13: 84 | V13: 120 | W13: 112.5434156 | X13: 119.3426274 | Y13: 0 | Z13: 0 | AA13: =Z13*SIN(RADIANS(90-U13))+S13 -> 100 | AB13: 0 | AC13: 35 | AD13: 0 | AE13: 0 | AG13: 7 | AH13: 41.7729706 | AI13: 87.32661536 | AJ13: 108.8661519 | AK13: 79.2214455 | AL13: 17.79819602 | AM13: 139.4672577 | AN13: 0.5924383059 | AO13: 89.50697058 | AP13: 74.1868765 | AQ13: 79.89036278 | AR13: 100 | AS13: 140 | AT13: 112.5434156 | AU13: 119.3426274 | AV13: 52.20180398 | AW13: 139.4672577 | AX13: 16.35352414 | AY13: 125.5703574 | AZ13: 44.69095889 | BA13: 108.9294876
B14: 63 | C14: 1.099557429 | D14: 0.8910065242 | E14: 0.4539904997 | R14: C8 | S14: 40 | T14: 0 | U14: 85 | V14: 140 | W14: 52.20180398 | X14: 139.4672577 | Y14: 0 | Z14: 0 | AA14: =Z14*SIN(RADIANS(90-U14))+S14 -> 40 | AB14: 0 | AC14: 15 | AD14: 0 | AE14: 0 | AG14: 8 | AH14: 41.7729706 | AI14: 87.32661536 | AJ14: 108.8661519 | AK14: 79.2214455 | AL14: 17.79819602 | AM14: 139.4672577 | AN14: 0.5924383059 | AO14: 89.50697058 | AP14: 74.1868765 | AQ14: 79.89036278 | AR14: 100 | AS14: 140 | AT14: 112.5434156 | AU14: 119.3426274 | AV14: 52.20180398 | AW14: 139.4672577 | AX14: 16.35352414 | AY14: 125.5703574 | AZ14: 44.69095889 | BA14: 108.9294876
B15: 72 | C15: 1.256637061 | D15: 0.9510565163 | E15: 0.3090169944 | R15: C9 | S15: 50 | T15: 0 | U15: 105 | V15: 130 | W15: 16.35352414 | X15: 125.5703574 | Y15: 0 | Z15: 0 | AA15: =Z15*SIN(RADIANS(90-U15))+S15 -> 50 | AB15: 0 | AC15: 25 | AD15: 0 | AE15: 0 | AG15: 9 | AH15: 41.7729706 | AI15: 87.32661536 | AJ15: 108.8661519 | AK15: 79.2214455 | AL15: 17.79819602 | AM15: 139.4672577 | AN15: 0.5924383059 | AO15: 89.50697058 | AP15: 74.1868765 | AQ15: 79.89036278 | AR15: 100 | AS15: 140 | AT15: 112.5434156 | AU15: 119.3426274 | AV15: 52.20180398 | AW15: 139.4672577 | AX15: 16.35352414 | AY15: 125.5703574 | AZ15: 44.69095889 | BA15: 108.9294876
B16: 81 | C16: 1.413716694 | D16: 0.9876883406 | E16: 0.156434465 | R16: C10 | S16: 60 | T16: 0 | U16: 98 | V16: 110 | W16: 44.69095889 | X16: 108.9294876 | Y16: 0 | Z16: 0 | AA16: =Z16*SIN(RADIANS(90-U16))+S16 -> 60 | AB16: 0 | AC16: 25 | AD16: 0 | AE16: 0 | AG16: 10 | AH16: 41.7729706 | AI16: 87.32661536 | AJ16: 108.8661519 | AK16: 79.2214455 | AL16: 17.79819602 | AM16: 139.4672577 | AN16: 0.5924383059 | AO16: 89.50697058 | AP16: 74.1868765 | AQ16: 79.89036278 | AR16: 100 | AS16: 140 | AT16: 112.5434156 | AU16: 119.3426274 | AV16: 52.20180398 | AW16: 139.4672577 | AX16: 16.35352414 | AY16: 125.5703574 | AZ16: 44.69095889 | BA16: 108.9294876
B17: 90 | C17: 1.570796327 | D17: 1 | E17: 6.125742275e-17 | AG17: 11 | AH17: 41.7729706 | AI17: 87.32661536 | AJ17: 108.8661519 | AK17: 79.2214455 | AL17: 17.79819602 | AM17: 139.4672577 | AN17: 0.5924383059 | AO17: 89.50697058 | AP17: 74.1868765 | AQ17: 79.89036278 | AR17: 100 | AS17: 140 | AT17: 112.5434156 | AU17: 119.3426274 | AV17: 52.20180398 | AW17: 139.4672577 | AX17: 16.35352414 | AY17: 125.5703574 | AZ17: 44.69095889 | BA17: 108.9294876
B18: 99 | C18: 1.727875959 | D18: 0.9876883406 | E18: -0.156434465 | AG18: 12 | AH18: 41.7729706 | AI18: 87.32661536 | AJ18: 108.8661519 | AK18: 79.2214455 | AL18: 17.79819602 | AM18: 139.4672577 | AN18: 0.5924383059 | AO18: 89.50697058 | AP18: 74.1868765 | AQ18: 79.89036278 | AR18: 100 | AS18: 140 | AT18: 112.5434156 | AU18: 119.3426274 | AV18: 52.20180398 | AW18: 139.4672577 | AX18: 16.35352414 | AY18: 125.5703574 | AZ18: 44.69095889 | BA18: 108.9294876
B19: 108 | C19: 1.884955592 | D19: 0.9510565163 | E19: -0.3090169944 | AG19: 13 | AH19: 41.7729706 | AI19: 87.32661536 | AJ19: 108.8661519 | AK19: 79.2214455 | AL19: 17.79819602 | AM19: 139.4672577 | AN19: 0.5924383059 | AO19: 89.50697058 | AP19: 74.1868765 | AQ19: 79.89036278 | AR19: 100 | AS19: 140 | AT19: 112.5434156 | AU19: 119.3426274 | AV19: 52.20180398 | AW19: 139.4672577 | AX19: 16.35352414 | AY19: 125.5703574 | AZ19: 44.69095889 | BA19: 108.9294876
B20: 117 | C20: 2.042035225 | D20: 0.8910065242 | E20: -0.4539904997 | AG20: 14 | AH20: 41.7729706 | AI20: 87.32661536 | AJ20: 108.8661519 | AK20: 79.2214455 | AL20: 17.79819602 | AM20: 139.4672577 | AN20: 0.5924383059 | AO20: 89.50697058 | AP20: 74.1868765 | AQ20: 79.89036278 | AR20: 100 | AS20: 140 | AT20: 112.5434156 | AU20: 119.3426274 | AV20: 52.20180398 | AW20: 139.4672577 | AX20: 16.35352414 | AY20: 125.5703574 | AZ20: 44.69095889 | BA20: 108.9294876
B21: 126 | C21: 2.199114858 | D21: 0.8090169944 | E21: -0.5877852523 | AG21: 15 | AH21: 41.7729706 | AI21: 87.32661536 | AJ21: 108.8661519 | AK21: 79.2214455 | AL21: 17.79819602 | AM21: 139.4672577 | AN21: 0.5924383059 | AO21: 89.50697058 | AP21: 74.1868765 | AQ21: 79.89036278 | AR21: 100 | AS21: 140 | AT21: 112.5434156 | AU21: 119.3426274 | AV21: 52.20180398 | AW21: 139.4672577 | AX21: 16.35352414 | AY21: 125.5703574 | AZ21: 44.69095889 | BA21: 108.9294876
B22: 135 | C22: 2.35619449 | D22: 0.7071067812 | E22: -0.7071067812 | R22: Random Values | AG22: 16 | AH22: 41.7729706 | AI22: 87.32661536 | AJ22: 108.8661519 | AK22: 79.2214455 | AL22: 17.79819602 | AM22: 139.4672577 | AN22: 0.5924383059 | AO22: 89.50697058 | AP22: 74.1868765 | AQ22: 79.89036278 | AR22: 100 | AS22: 140 | AT22: 112.5434156 | AU22: 119.3426274 | AV22: 52.20180398 | AW22: 139.4672577 | AX22: 16.35352414 | AY22: 125.5703574 | AZ22: 44.69095889 | BA22: 108.9294876
B23: 144 | C23: 2.513274123 | D23: 0.5877852523 | E23: -0.8090169944 | R23: X1 | S23: Angle | T23: Max-Height | U23: MaxSize | AG23: 17 | AH23: 41.7729706 | AI23: 87.32661536 | AJ23: 108.8661519 | AK23: 79.2214455 | AL23: =IF(MOD($AG23,2)=1,0,INDEX($D$7:$D$46,$AG23/2)*INDEX($AE$7:$AE$16,AL$2))+INDEX($W$7:$W$16,AL$2) -> 17.79819602 | AM23: =IF(MOD($AG23,2)=1,0,INDEX($E$7:$E$46,$AG23/2)*INDEX($AE$7:$AE$16,AM$2))+INDEX($X$7:$X$16,AM$2) -> 139.4672577 | AN23: =IF(MOD($AG23,2)=1,0,INDEX($D$7:$D$46,$AG23/2)*INDEX($AE$7:$AE$16,AN$2))+INDEX($W$7:$W$16,AN$2) -> 0.5924383059 | AO23: =IF(MOD($AG23,2)=1,0,INDEX($E$7:$E$46,$AG23/2)*INDEX($AE$7:$AE$16,AO$2))+INDEX($X$7:$X$16,AO$2) -> 89.50697058 | AP23: =IF(MOD($AG23,2)=1,0,INDEX($D$7:$D$46,$AG23/2)*INDEX($AE$7:$AE$16,AP$2))+INDEX($W$7:$W$16,AP$2) -> 74.1868765 | AQ23: =IF(MOD($AG23,2)=1,0,INDEX($E$7:$E$46,$AG23/2)*INDEX($AE$7:$AE$16,AQ$2))+INDEX($X$7:$X$16,AQ$2) -> 79.89036278 | AR23: =IF(MOD($AG23,2)=1,0,INDEX($D$7:$D$46,$AG23/2)*INDEX($AE$7:$AE$16,AR$2))+INDEX($W$7:$W$16,AR$2) -> 100 | AS23: =IF(MOD($AG23,2)=1,0,INDEX($E$7:$E$46,$AG23/2)*INDEX($AE$7:$AE$16,AS$2))+INDEX($X$7:$X$16,AS$2) -> 140 | AT23: =IF(MOD($AG23,2)=1,0,INDEX($D$7:$D$46,$AG23/2)*INDEX($AE$7:$AE$16,AT$2))+INDEX($W$7:$W$16,AT$2) -> 112.5434156 | AU23: =IF(MOD($AG23,2)=1,0,INDEX($E$7:$E$46,$AG23/2)*INDEX($AE$7:$AE$16,AU$2))+INDEX($X$7:$X$16,AU$2) -> 119.3426274 | AV23: =IF(MOD($AG23,2)=1,0,INDEX($D$7:$D$46,$AG23/2)*INDEX($AE$7:$AE$16,AV$2))+INDEX($W$7:$W$16,AV$2) -> 52.20180398 | AW23: =IF(MOD($AG23,2)=1,0,INDEX($E$7:$E$46,$AG23/2)*INDEX($AE$7:$AE$16,AW$2))+INDEX($X$7:$X$16,AW$2) -> 139.4672577 | AX23: =IF(MOD($AG23,2)=1,0,INDEX($D$7:$D$46,$AG23/2)*INDEX($AE$7:$AE$16,AX$2))+INDEX($W$7:$W$16,AX$2) -> 16.35352414 | AY23: =IF(MOD($AG23,2)=1,0,INDEX($E$7:$E$46,$AG23/2)*INDEX($AE$7:$AE$16,AY$2))+INDEX($X$7:$X$16,AY$2) -> 125.5703574 | AZ23: =IF(MOD($AG23,2)=1,0,INDEX($D$7:$D$46,$AG23/2)*INDEX($AE$7:$AE$16,AZ$2))+INDEX($W$7:$W$16,AZ$2) -> 44.69095889 | BA23: 108.9294876
B24: 153 | C24: 2.670353756 | D24: 0.4539904997 | E24: -0.8910065242 | R24: =RANDBETWEEN(0,12)*10 -> 60 | S24: =RANDBETWEEN(75,105) -> 101 | T24: =RANDBETWEEN(8,16)*10 -> 90 | U24: =RANDBETWEEN(3,7)*5 -> 25 | AG24: 18 | AH24: 41.7729706 | AI24: 87.32661536 | AJ24: 108.8661519 | AK24: 79.2214455 | AL24: 17.79819602 | AM24: 139.4672577 | AN24: 0.5924383059 | AO24: 89.50697058 | AP24: 74.1868765 | AQ24: 79.89036278 | AR24: 100 | AS24: 140 | AT24: 112.5434156 | AU24: 119.3426274 | AV24: 52.20180398 | AW24: 139.4672577 | AX24: 16.35352414 | AY24: 125.5703574 | AZ24: 44.69095889 | BA24: 108.9294876
B25: 162 | C25: 2.827433388 | D25: 0.3090169944 | E25: -0.9510565163 | R25: =RANDBETWEEN(0,12)*10 -> 100 | S25: =RANDBETWEEN(75,105) -> 78 | T25: =RANDBETWEEN(8,16)*10 -> 130 | U25: =RANDBETWEEN(3,7)*5 -> 35 | AG25: 19 | AH25: 41.7729706 | AI25: 87.32661536 | AJ25: 108.8661519 | AK25: 79.2214455 | AL25: 17.79819602 | AM25: 139.4672577 | AN25: 0.5924383059 | AO25: 89.50697058 | AP25: 74.1868765 | AQ25: 79.89036278 | AR25: 100 | AS25: 140 | AT25: 112.5434156 | AU25: 119.3426274 | AV25: 52.20180398 | AW25: 139.4672577 | AX25: 16.35352414 | AY25: 125.5703574 | AZ25: 44.69095889 | BA25: 108.9294876
B26: 171 | C26: 2.984513021 | D26: 0.156434465 | E26: -0.9876883406 | R26: 10 | S26: 101 | T26: 110 | U26: 15 | AG26: 20 | AH26: 41.7729706 | AI26: 87.32661536 | AJ26: 108.8661519 | AK26: 79.2214455 | AL26: 17.79819602 | AM26: 139.4672577 | AN26: 0.5924383059 | AO26: 89.50697058 | AP26: 74.1868765 | AQ26: 79.89036278 | AR26: 100 | AS26: 140 | AT26: 112.5434156 | AU26: 119.3426274 | AV26: 52.20180398 | AW26: 139.4672577 | AX26: 16.35352414 | AY26: 125.5703574 | AZ26: 44.69095889 | BA26: 108.9294876
B27: 180 | C27: 3.141592654 | D27: 1.225148455e-16 | E27: -1 | R27: 40 | S27: 99 | T27: 150 | U27: 15 | AG27: 21 | AH27: 41.7729706 | AI27: 87.32661536 | AJ27: 108.8661519 | AK27: 79.2214455 | AL27: 17.79819602 | AM27: 139.4672577 | AN27: 0.5924383059 | AO27: 89.50697058 | AP27: 74.1868765 | AQ27: 79.89036278 | AR27: 100 | AS27: 140 | AT27: 112.5434156 | AU27: 119.3426274 | AV27: 52.20180398 | AW27: 139.4672577 | AX27: 16.35352414 | AY27: 125.5703574 | AZ27: 44.69095889 | BA27: 108.9294876
B28: 189 | C28: 3.298672286 | D28: -0.156434465 | E28: -0.9876883406 | R28: 20 | S28: 77 | T28: 80 | U28: 15 | AG28: 22 | AH28: 41.7729706 | AI28: 87.32661536 | AJ28: 108.8661519 | AK28: 79.2214455 | AL28: 17.79819602 | AM28: 139.4672577 | AN28: 0.5924383059 | AO28: 89.50697058 | AP28: 74.1868765 | AQ28: 79.89036278 | AR28: 100 | AS28: 140 | AT28: 112.5434156 | AU28: 119.3426274 | AV28: 52.20180398 | AW28: 139.4672577 | AX28: 16.35352414 | AY28: 125.5703574 | AZ28: 44.69095889 | BA28: 108.9294876
B29: 198 | C29: 3.455751919 | D29: -0.3090169944 | E29: -0.9510565163 | R29: 50 | S29: 89 | T29: 110 | U29: 20 | AG29: 23 | AH29: 41.7729706 | AI29: 87.32661536 | AJ29: 108.8661519 | AK29: 79.2214455 | AL29: 17.79819602 | AM29: 139.4672577 | AN29: 0.5924383059 | AO29: 89.50697058 | AP29: 74.1868765 | AQ29: 79.89036278 | AR29: 100 | AS29: 140 | AT29: 112.5434156 | AU29: 119.3426274 | AV29: 52.20180398 | AW29: 139.4672577 | AX29: 16.35352414 | AY29: 125.5703574 | AZ29: 44.69095889 | BA29: 108.9294876
B30: 207 | C30: 3.612831552 | D30: -0.4539904997 | E30: -0.8910065242 | R30: 0 | S30: 103 | T30: 150 | U30: 15 | AG30: 24 | AH30: 41.7729706 | AI30: 87.32661536 | AJ30: 108.8661519 | AK30: 79.2214455 | AL30: 17.79819602 | AM30: 139.4672577 | AN30: 0.5924383059 | AO30: 89.50697058 | AP30: 74.1868765 | AQ30: 79.89036278 | AR30: 100 | AS30: 140 | AT30: 112.5434156 | AU30: 119.3426274 | AV30: 52.20180398 | AW30: 139.4672577 | AX30: 16.35352414 | AY30: 125.5703574 | AZ30: 44.69095889 | BA30: 108.9294876
B31: 216 | C31: 3.769911184 | D31: -0.5877852523 | E31: -0.8090169944 | R31: 10 | S31: 87 | T31: 130 | U31: 25 | AG31: 25 | AH31: 41.7729706 | AI31: 87.32661536 | AJ31: 108.8661519 | AK31: 79.2214455 | AL31: 17.79819602 | AM31: 139.4672577 | AN31: 0.5924383059 | AO31: 89.50697058 | AP31: 74.1868765 | AQ31: 79.89036278 | AR31: 100 | AS31: 140 | AT31: 112.5434156 | AU31: 119.3426274 | AV31: 52.20180398 | AW31: 139.4672577 | AX31: 16.35352414 | AY31: 125.5703574 | AZ31: 44.69095889 | BA31: 108.9294876
B32: 225 | C32: 3.926990817 | D32: -0.7071067812 | E32: -0.7071067812 | R32: 10 | S32: 96 | T32: 120 | U32: 20 | AG32: 26 | AH32: 41.7729706 | AI32: 87.32661536 | AJ32: 108.8661519 | AK32: 79.2214455 | AL32: 17.79819602 | AM32: 139.4672577 | AN32: 0.5924383059 | AO32: 89.50697058 | AP32: 74.1868765 | AQ32: 79.89036278 | AR32: 100 | AS32: 140 | AT32: 112.5434156 | AU32: 119.3426274 | AV32: 52.20180398 | AW32: 139.4672577 | AX32: 16.35352414 | AY32: 125.5703574 | AZ32: 44.69095889 | BA32: 108.9294876
B33: 234 | C33: 4.08407045 | D33: -0.8090169944 | E33: -0.5877852523 | R33: 30 | S33: 105 | T33: 140 | U33: 25 | AG33: 27 | AH33: 41.7729706 | AI33: 87.32661536 | AJ33: 108.8661519 | AK33: 79.2214455 | AL33: 17.79819602 | AM33: 139.4672577 | AN33: 0.5924383059 | AO33: 89.50697058 | AP33: 74.1868765 | AQ33: 79.89036278 | AR33: 100 | AS33: 140 | AT33: 112.5434156 | AU33: 119.3426274 | AV33: 52.20180398 | AW33: 139.4672577 | AX33: 16.35352414 | AY33: 125.5703574 | AZ33: 44.69095889 | BA33: 108.9294876
B34: 243 | C34: 4.241150082 | D34: -0.8910065242 | E34: -0.4539904997 | AG34: 28 | AH34: 41.7729706 | AI34: 87.32661536 | AJ34: 108.8661519 | AK34: 79.2214455 | AL34: 17.79819602 | AM34: 139.4672577 | AN34: 0.5924383059 | AO34: 89.50697058 | AP34: 74.1868765 | AQ34: 79.89036278 | AR34: 100 | AS34: 140 | AT34: 112.5434156 | AU34: 119.3426274 | AV34: 52.20180398 | AW34: 139.4672577 | AX34: 16.35352414 | AY34: 125.5703574 | AZ34: 44.69095889 | BA34: 108.9294876
B35: 252 | C35: 4.398229715 | D35: -0.9510565163 | E35: -0.3090169944 | AG35: 29 | AH35: 41.7729706 | AI35: 87.32661536 | AJ35: 108.8661519 | AK35: 79.2214455 | AL35: 17.79819602 | AM35: 139.4672577 | AN35: 0.5924383059 | AO35: 89.50697058 | AP35: 74.1868765 | AQ35: 79.89036278 | AR35: 100 | AS35: 140 | AT35: 112.5434156 | AU35: 119.3426274 | AV35: 52.20180398 | AW35: 139.4672577 | AX35: 16.35352414 | AY35: 125.5703574 | AZ35: 44.69095889 | BA35: 108.9294876
B36: 261 | C36: 4.555309348 | D36: -0.9876883406 | E36: -0.156434465 | AG36: 30 | AH36: 41.7729706 | AI36: 87.32661536 | AJ36: 108.8661519 | AK36: 79.2214455 | AL36: 17.79819602 | AM36: 139.4672577 | AN36: 0.5924383059 | AO36: 89.50697058 | AP36: 74.1868765 | AQ36: 79.89036278 | AR36: 100 | AS36: 140 | AT36: 112.5434156 | AU36: 119.3426274 | AV36: 52.20180398 | AW36: 139.4672577 | AX36: 16.35352414 | AY36: 125.5703574 | AZ36: 44.69095889 | BA36: 108.9294876
B37: 270 | C37: 4.71238898 | D37: -1 | E37: -1.837722682e-16 | AG37: 31 | AH37: 41.7729706 | AI37: 87.32661536 | AJ37: 108.8661519 | AK37: 79.2214455 | AL37: 17.79819602 | AM37: 139.4672577 | AN37: 0.5924383059 | AO37: 89.50697058 | AP37: 74.1868765 | AQ37: 79.89036278 | AR37: 100 | AS37: 140 | AT37: 112.5434156 | AU37: 119.3426274 | AV37: 52.20180398 | AW37: 139.4672577 | AX37: 16.35352414 | AY37: 125.5703574 | AZ37: 44.69095889 | BA37: 108.9294876
B38: 279 | C38: 4.869468613 | D38: -0.9876883406 | E38: 0.156434465 | AG38: 32 | AH38: 41.7729706 | AI38: 87.32661536 | AJ38: 108.8661519 | AK38: 79.2214455 | AL38: 17.79819602 | AM38: 139.4672577 | AN38: 0.5924383059 | AO38: 89.50697058 | AP38: 74.1868765 | AQ38: 79.89036278 | AR38: 100 | AS38: 140 | AT38: 112.5434156 | AU38: 119.3426274 | AV38: 52.20180398 | AW38: 139.4672577 | AX38: 16.35352414 | AY38: 125.5703574 | AZ38: 44.69095889 | BA38: 108.9294876
B39: 288 | C39: 5.026548246 | D39: -0.9510565163 | E39: 0.3090169944 | AG39: 33 | AH39: 41.7729706 | AI39: 87.32661536 | AJ39: 108.8661519 | AK39: 79.2214455 | AL39: 17.79819602 | AM39: 139.4672577 | AN39: 0.5924383059 | AO39: 89.50697058 | AP39: 74.1868765 | AQ39: 79.89036278 | AR39: 100 | AS39: 140 | AT39: 112.5434156 | AU39: 119.3426274 | AV39: 52.20180398 | AW39: 139.4672577 | AX39: 16.35352414 | AY39: 125.5703574 | AZ39: 44.69095889 | BA39: 108.9294876
B40: 297 | C40: 5.183627878 | D40: -0.8910065242 | E40: 0.4539904997 | AG40: 34 | AH40: 41.7729706 | AI40: 87.32661536 | AJ40: 108.8661519 | AK40: 79.2214455 | AL40: 17.79819602 | AM40: 139.4672577 | AN40: 0.5924383059 | AO40: 89.50697058 | AP40: 74.1868765 | AQ40: 79.89036278 | AR40: 100 | AS40: 140 | AT40: 112.5434156 | AU40: 119.3426274 | AV40: 52.20180398 | AW40: 139.4672577 | AX40: 16.35352414 | AY40: 125.5703574 | AZ40: 44.69095889 | BA40: 108.9294876
B41: 306 | C41: 5.340707511 | D41: -0.8090169944 | E41: 0.5877852523 | AG41: 35 | AH41: 41.7729706 | AI41: 87.32661536 | AJ41: 108.8661519 | AK41: 79.2214455 | AL41: 17.79819602 | AM41: 139.4672577 | AN41: 0.5924383059 | AO41: 89.50697058 | AP41: 74.1868765 | AQ41: 79.89036278 | AR41: 100 | AS41: 140 | AT41: 112.5434156 | AU41: 119.3426274 | AV41: 52.20180398 | AW41: 139.4672577 | AX41: 16.35352414 | AY41: 125.5703574 | AZ41: 44.69095889 | BA41: 108.9294876
B42: 315 | C42: 5.497787144 | D42: -0.7071067812 | E42: 0.7071067812 | AG42: 36 | AH42: 41.7729706 | AI42: 87.32661536 | AJ42: 108.8661519 | AK42: 79.2214455 | AL42: 17.79819602 | AM42: 139.4672577 | AN42: 0.5924383059 | AO42: 89.50697058 | AP42: 74.1868765 | AQ42: 79.89036278 | AR42: 100 | AS42: 140 | AT42: 112.5434156 | AU42: 119.3426274 | AV42: 52.20180398 | AW42: 139.4672577 | AX42: 16.35352414 | AY42: 125.5703574 | AZ42: 44.69095889 | BA42: 108.9294876
B43: 324 | C43: 5.654866776 | D43: -0.5877852523 | E43: 0.8090169944 | AG43: 37 | AH43: 41.7729706 | AI43: 87.32661536 | AJ43: 108.8661519 | AK43: 79.2214455 | AL43: 17.79819602 | AM43: 139.4672577 | AN43: 0.5924383059 | AO43: 89.50697058 | AP43: 74.1868765 | AQ43: 79.89036278 | AR43: 100 | AS43: 140 | AT43: 112.5434156 | AU43: 119.3426274 | AV43: 52.20180398 | AW43: 139.4672577 | AX43: 16.35352414 | AY43: 125.5703574 | AZ43: 44.69095889 | BA43: 108.9294876
B44: 333 | C44: 5.811946409 | D44: -0.4539904997 | E44: 0.8910065242 | AG44: 38 | AH44: 41.7729706 | AI44: 87.32661536 | AJ44: 108.8661519 | AK44: 79.2214455 | AL44: 17.79819602 | AM44: 139.4672577 | AN44: 0.5924383059 | AO44: 89.50697058 | AP44: 74.1868765 | AQ44: 79.89036278 | AR44: 100 | AS44: 140 | AT44: 112.5434156 | AU44: 119.3426274 | AV44: 52.20180398 | AW44: 139.4672577 | AX44: 16.35352414 | AY44: 125.5703574 | AZ44: 44.69095889 | BA44: 108.9294876
B45: 342 | C45: 5.969026042 | D45: -0.3090169944 | E45: 0.9510565163 | AG45: 39 | AH45: 41.7729706 | AI45: 87.32661536 | AJ45: 108.8661519 | AK45: 79.2214455 | AL45: 17.79819602 | AM45: 139.4672577 | AN45: 0.5924383059 | AO45: 89.50697058 | AP45: 74.1868765 | AQ45: 79.89036278 | AR45: 100 | AS45: 140 | AT45: 112.5434156 | AU45: 119.3426274 | AV45: 52.20180398 | AW45: 139.4672577 | AX45: 16.35352414 | AY45: 125.5703574 | AZ45: 44.69095889 | BA45: 108.9294876
B46: 351 | C46: 6.126105675 | D46: -0.156434465 | E46: 0.9876883406 | AG46: 40 | AH46: 41.7729706 | AI46: 87.32661536 | AJ46: 108.8661519 | AK46: 79.2214455 | AL46: 17.79819602 | AM46: 139.4672577 | AN46: 0.5924383059 | AO46: 89.50697058 | AP46: 74.1868765 | AQ46: 79.89036278 | AR46: 100 | AS46: 140 | AT46: 112.5434156 | AU46: 119.3426274 | AV46: 52.20180398 | AW46: 139.4672577 | AX46: 16.35352414 | AY46: 125.5703574 | AZ46: 44.69095889 | BA46: 108.9294876
AG47: 41 | AH47: 41.7729706 | AI47: 87.32661536 | AJ47: 108.8661519 | AK47: 79.2214455 | AL47: 17.79819602 | AM47: 139.4672577 | AN47: 0.5924383059 | AO47: 89.50697058 | AP47: 74.1868765 | AQ47: 79.89036278 | AR47: 100 | AS47: 140 | AT47: 112.5434156 | AU47: 119.3426274 | AV47: 52.20180398 | AW47: 139.4672577 | AX47: 16.35352414 | AY47: 125.5703574 | AZ47: 44.69095889 | BA47: 108.9294876
AG48: 42 | AH48: 41.7729706 | AI48: 87.32661536 | AJ48: 108.8661519 | AK48: 79.2214455 | AL48: 17.79819602 | AM48: 139.4672577 | AN48: 0.5924383059 | AO48: 89.50697058 | AP48: 74.1868765 | AQ48: 79.89036278 | AR48: 100 | AS48: 140 | AT48: 112.5434156 | AU48: 119.3426274 | AV48: 52.20180398 | AW48: 139.4672577 | AX48: 16.35352414 | AY48: 125.5703574 | AZ48: 44.69095889 | BA48: 108.9294876
AG49: 43 | AH49: 41.7729706 | AI49: 87.32661536 | AJ49: 108.8661519 | AK49: 79.2214455 | AL49: 17.79819602 | AM49: 139.4672577 | AN49: 0.5924383059 | AO49: 89.50697058 | AP49: 74.1868765 | AQ49: 79.89036278 | AR49: 100 | AS49: 140 | AT49: 112.5434156 | AU49: 119.3426274 | AV49: 52.20180398 | AW49: 139.4672577 | AX49: 16.35352414 | AY49: 125.5703574 | AZ49: 44.69095889 | BA49: 108.9294876
AG50: 44 | AH50: 41.7729706 | AI50: 87.32661536 | AJ50: 108.8661519 | AK50: 79.2214455 | AL50: 17.79819602 | AM50: 139.4672577 | AN50: 0.5924383059 | AO50: 89.50697058 | AP50: 74.1868765 | AQ50: 79.89036278 | AR50: 100 | AS50: 140 | AT50: 112.5434156 | AU50: 119.3426274 | AV50: 52.20180398 | AW50: 139.4672577 | AX50: 16.35352414 | AY50: 125.5703574 | AZ50: 44.69095889 | BA50: 108.9294876
AG51: 45 | AH51: 41.7729706 | AI51: 87.32661536 | AJ51: 108.8661519 | AK51: 79.2214455 | AL51: 17.79819602 | AM51: 139.4672577 | AN51: 0.5924383059 | AO51: 89.50697058 | AP51: 74.1868765 | AQ51: 79.89036278 | AR51: 100 | AS51: 140 | AT51: 112.5434156 | AU51: 119.3426274 | AV51: 52.20180398 | AW51: 139.4672577 | AX51: 16.35352414 | AY51: 125.5703574 | AZ51: 44.69095889 | BA51: 108.9294876
AG52: 46 | AH52: 41.7729706 | AI52: 87.32661536 | AJ52: 108.8661519 | AK52: 79.2214455 | AL52: 17.79819602 | AM52: 139.4672577 | AN52: 0.5924383059 | AO52: 89.50697058 | AP52: 74.1868765 | AQ52: 79.89036278 | AR52: 100 | AS52: 140 | AT52: 112.5434156 | AU52: 119.3426274 | AV52: 52.20180398 | AW52: 139.4672577 | AX52: 16.35352414 | AY52: 125.5703574 | AZ52: 44.69095889 | BA52: 108.9294876
AG53: 47 | AH53: 41.7729706 | AI53: 87.32661536 | AJ53: 108.8661519 | AK53: 79.2214455 | AL53: 17.79819602 | AM53: 139.4672577 | AN53: 0.5924383059 | AO53: 89.50697058 | AP53: 74.1868765 | AQ53: 79.89036278 | AR53: 100 | AS53: 140 | AT53: 112.5434156 | AU53: 119.3426274 | AV53: 52.20180398 | AW53: 139.4672577 | AX53: 16.35352414 | AY53: 125.5703574 | AZ53: 44.69095889 | BA53: 108.9294876
AG54: 48 | AH54: 41.7729706 | AI54: 87.32661536 | AJ54: 108.8661519 | AK54: 79.2214455 | AL54: 17.79819602 | AM54: 139.4672577 | AN54: 0.5924383059 | AO54: 89.50697058 | AP54: 74.1868765 | AQ54: 79.89036278 | AR54: 100 | AS54: 140 | AT54: 112.5434156 | AU54: 119.3426274 | AV54: 52.20180398 | AW54: 139.4672577 | AX54: 16.35352414 | AY54: 125.5703574 | AZ54: 44.69095889 | BA54: 108.9294876
AG55: 49 | AH55: 41.7729706 | AI55: 87.32661536 | AJ55: 108.8661519 | AK55: 79.2214455 | AL55: 17.79819602 | AM55: 139.4672577 | AN55: 0.5924383059 | AO55: 89.50697058 | AP55: 74.1868765 | AQ55: 79.89036278 | AR55: 100 | AS55: 140 | AT55: 112.5434156 | AU55: 119.3426274 | AV55: 52.20180398 | AW55: 139.4672577 | AX55: 16.35352414 | AY55: 125.5703574 | AZ55: 44.69095889 | BA55: 108.9294876
AG56: 50 | AH56: 41.7729706 | AI56: 87.32661536 | AJ56: 108.8661519 | AK56: 79.2214455 | AL56: 17.79819602 | AM56: 139.4672577 | AN56: 0.5924383059 | AO56: 89.50697058 | AP56: 74.1868765 | AQ56: 79.89036278 | AR56: 100 | AS56: 140 | AT56: 112.5434156 | AU56: 119.3426274 | AV56: 52.20180398 | AW56: 139.4672577 | AX56: 16.35352414 | AY56: 125.5703574 | AZ56: 44.69095889 | BA56: 108.9294876
AG57: 51 | AH57: 41.7729706 | AI57: 87.32661536 | AJ57: 108.8661519 | AK57: 79.2214455 | AL57: 17.79819602 | AM57: 139.4672577 | AN57: 0.5924383059 | AO57: 89.50697058 | AP57: 74.1868765 | AQ57: 79.89036278 | AR57: 100 | AS57: 140 | AT57: 112.5434156 | AU57: 119.3426274 | AV57: 52.20180398 | AW57: 139.4672577 | AX57: 16.35352414 | AY57: 125.5703574 | AZ57: 44.69095889 | BA57: 108.9294876
AG58: 52 | AH58: 41.7729706 | AI58: 87.32661536 | AJ58: 108.8661519 | AK58: 79.2214455 | AL58: 17.79819602 | AM58: 139.4672577 | AN58: 0.5924383059 | AO58: 89.50697058 | AP58: 74.1868765 | AQ58: 79.89036278 | AR58: 100 | AS58: 140 | AT58: 112.5434156 | AU58: 119.3426274 | AV58: 52.20180398 | AW58: 139.4672577 | AX58: 16.35352414 | AY58: 125.5703574 | AZ58: 44.69095889 | BA58: 108.9294876
AG59: 53 | AH59: 41.7729706 | AI59: 87.32661536 | AJ59: 108.8661519 | AK59: 79.2214455 | AL59: 17.79819602 | AM59: 139.4672577 | AN59: 0.5924383059 | AO59: 89.50697058 | AP59: 74.1868765 | AQ59: 79.89036278 | AR59: 100 | AS59: 140 | AT59: 112.5434156 | AU59: 119.3426274 | AV59: 52.20180398 | AW59: 139.4672577 | AX59: 16.35352414 | AY59: 125.5703574 | AZ59: 44.69095889 | BA59: 108.9294876
AG60: 54 | AH60: 41.7729706 | AI60: 87.32661536 | AJ60: 108.8661519 | AK60: 79.2214455 | AL60: 17.79819602 | AM60: 139.4672577 | AN60: 0.5924383059 | AO60: 89.50697058 | AP60: 74.1868765 | AQ60: 79.89036278 | AR60: 100 | AS60: 140 | AT60: 112.5434156 | AU60: 119.3426274 | AV60: 52.20180398 | AW60: 139.4672577 | AX60: 16.35352414 | AY60: 125.5703574 | AZ60: 44.69095889 | BA60: 108.9294876
AG61: 55 | AH61: 41.7729706 | AI61: 87.32661536 | AJ61: 108.8661519 | AK61: 79.2214455 | AL61: 17.79819602 | AM61: 139.4672577 | AN61: 0.5924383059 | AO61: 89.50697058 | AP61: 74.1868765 | AQ61: 79.89036278 | AR61: 100 | AS61: 140 | AT61: 112.5434156 | AU61: 119.3426274 | AV61: 52.20180398 | AW61: 139.4672577 | AX61: 16.35352414 | AY61: 125.5703574 | AZ61: 44.69095889 | BA61: 108.9294876
AG62: 56 | AH62: 41.7729706 | AI62: 87.32661536 | AJ62: 108.8661519 | AK62: 79.2214455 | AL62: 17.79819602 | AM62: 139.4672577 | AN62: 0.5924383059 | AO62: 89.50697058 | AP62: 74.1868765 | AQ62: 79.89036278 | AR62: 100 | AS62: 140 | AT62: 112.5434156 | AU62: 119.3426274 | AV62: 52.20180398 | AW62: 139.4672577 | AX62: 16.35352414 | AY62: 125.5703574 | AZ62: 44.69095889 | BA62: 108.9294876
AG63: 57 | AH63: 41.7729706 | AI63: 87.32661536 | AJ63: 108.8661519 | AK63: 79.2214455 | AL63: 17.79819602 | AM63: 139.4672577 | AN63: 0.5924383059 | AO63: 89.50697058 | AP63: 74.1868765 | AQ63: 79.89036278 | AR63: 100 | AS63: 140 | AT63: 112.5434156 | AU63: 119.3426274 | AV63: 52.20180398 | AW63: 139.4672577 | AX63: 16.35352414 | AY63: 125.5703574 | AZ63: 44.69095889 | BA63: 108.9294876
AG64: 58 | AH64: 41.7729706 | AI64: 87.32661536 | AJ64: 108.8661519 | AK64: 79.2214455 | AL64: 17.79819602 | AM64: 139.4672577 | AN64: 0.5924383059 | AO64: 89.50697058 | AP64: 74.1868765 | AQ64: 79.89036278 | AR64: 100 | AS64: 140 | AT64: 112.5434156 | AU64: 119.3426274 | AV64: 52.20180398 | AW64: 139.4672577 | AX64: 16.35352414 | AY64: 125.5703574 | AZ64: 44.69095889 | BA64: 108.9294876
AG65: 59 | AH65: 41.7729706 | AI65: 87.32661536 | AJ65: 108.8661519 | AK65: 79.2214455 | AL65: 17.79819602 | AM65: 139.4672577 | AN65: 0.5924383059 | AO65: 89.50697058 | AP65: 74.1868765 | AQ65: 79.89036278 | AR65: 100 | AS65: 140 | AT65: 112.5434156 | AU65: 119.3426274 | AV65: 52.20180398 | AW65: 139.4672577 | AX65: 16.35352414 | AY65: 125.5703574 | AZ65: 44.69095889 | BA65: 108.9294876
AG66: 60 | AH66: 41.7729706 | AI66: 87.32661536 | AJ66: 108.8661519 | AK66: 79.2214455 | AL66: 17.79819602 | AM66: 139.4672577 | AN66: 0.5924383059 | AO66: 89.50697058 | AP66: 74.1868765 | AQ66: 79.89036278 | AR66: 100 | AS66: 140 | AT66: 112.5434156 | AU66: 119.3426274 | AV66: 52.20180398 | AW66: 139.4672577 | AX66: 16.35352414 | AY66: 125.5703574 | AZ66: 44.69095889 | BA66: 108.9294876
AG67: 61 | AH67: 41.7729706 | AI67: 87.32661536 | AJ67: 108.8661519 | AK67: 79.2214455 | AL67: 17.79819602 | AM67: 139.4672577 | AN67: 0.5924383059 | AO67: 89.50697058 | AP67: 74.1868765 | AQ67: 79.89036278 | AR67: 100 | AS67: 140 | AT67: 112.5434156 | AU67: 119.3426274 | AV67: 52.20180398 | AW67: 139.4672577 | AX67: 16.35352414 | AY67: 125.5703574 | AZ67: 44.69095889 | BA67: 108.9294876
AG68: 62 | AH68: 41.7729706 | AI68: 87.32661536 | AJ68: 108.8661519 | AK68: 79.2214455 | AL68: 17.79819602 | AM68: 139.4672577 | AN68: 0.5924383059 | AO68: 89.50697058 | AP68: 74.1868765 | AQ68: 79.89036278 | AR68: 100 | AS68: 140 | AT68: 112.5434156 | AU68: 119.3426274 | AV68: 52.20180398 | AW68: 139.4672577 | AX68: 16.35352414 | AY68: 125.5703574 | AZ68: 44.69095889 | BA68: 108.9294876
AG69: 63 | AH69: 41.7729706 | AI69: 87.32661536 | AJ69: 108.8661519 | AK69: 79.2214455 | AL69: 17.79819602 | AM69: 139.4672577 | AN69: 0.5924383059 | AO69: 89.50697058 | AP69: 74.1868765 | AQ69: 79.89036278 | AR69: 100 | AS69: 140 | AT69: 112.5434156 | AU69: 119.3426274 | AV69: 52.20180398 | AW69: 139.4672577 | AX69: 16.35352414 | AY69: 125.5703574 | AZ69: 44.69095889 | BA69: 108.9294876
AG70: 64 | AH70: 41.7729706 | AI70: 87.32661536 | AJ70: 108.8661519 | AK70: 79.2214455 | AL70: 17.79819602 | AM70: 139.4672577 | AN70: 0.5924383059 | AO70: 89.50697058 | AP70: 74.1868765 | AQ70: 79.89036278 | AR70: 100 | AS70: 140 | AT70: 112.5434156 | AU70: 119.3426274 | AV70: 52.20180398 | AW70: 139.4672577 | AX70: 16.35352414 | AY70: 125.5703574 | AZ70: 44.69095889 | BA70: 108.9294876
AG71: 65 | AH71: 41.7729706 | AI71: 87.32661536 | AJ71: 108.8661519 | AK71: 79.2214455 | AL71: 17.79819602 | AM71: 139.4672577 | AN71: 0.5924383059 | AO71: 89.50697058 | AP71: 74.1868765 | AQ71: 79.89036278 | AR71: 100 | AS71: 140 | AT71: 112.5434156 | AU71: 119.3426274 | AV71: 52.20180398 | AW71: 139.4672577 | AX71: 16.35352414 | AY71: 125.5703574 | AZ71: 44.69095889 | BA71: =IF(MOD($AG71,2)=1,0,INDEX($E$7:$E$46,$AG71/2)*INDEX($AE$7:$AE$16,BA$2))+INDEX($X$7:$X$16,BA$2) -> 108.9294876
AG72: 66 | AH72: =IF(MOD($AG72,2)=1,0,INDEX($D$7:$D$46,$AG72/2)*INDEX($AE$7:$AE$16,AH$2))+INDEX($W$7:$W$16,AH$2) -> 41.7729706 | AI72: =IF(MOD($AG72,2)=1,0,INDEX($E$7:$E$46,$AG72/2)*INDEX($AE$7:$AE$16,AI$2))+INDEX($X$7:$X$16,AI$2) -> 87.32661536 | AJ72: =IF(MOD($AG72,2)=1,0,INDEX($D$7:$D$46,$AG72/2)*INDEX($AE$7:$AE$16,AJ$2))+INDEX($W$7:$W$16,AJ$2) -> 108.8661519 | AK72: =IF(MOD($AG72,2)=1,0,INDEX($E$7:$E$46,$AG72/2)*INDEX($AE$7:$AE$16,AK$2))+INDEX($X$7:$X$16,AK$2) -> 79.2214455 | AL72: 17.79819602 | AM72: 139.4672577 | AN72: 0.5924383059 | AO72: 89.50697058 | AP72: 74.1868765 | AQ72: 79.89036278 | AR72: 100 | AS72: 140 | AT72: 112.5434156 | AU72: 119.3426274 | AV72: 52.20180398 | AW72: 139.4672577 | AX72: 16.35352414 | AY72: 125.5703574 | AZ72: 44.69095889 | BA72: 108.9294876
AG73: 67 | AH73: 41.7729706 | AI73: 87.32661536 | AJ73: 108.8661519 | AK73: 79.2214455 | AL73: 17.79819602 | AM73: 139.4672577 | AN73: 0.5924383059 | AO73: 89.50697058 | AP73: 74.1868765 | AQ73: 79.89036278 | AR73: 100 | AS73: 140 | AT73: 112.5434156 | AU73: 119.3426274 | AV73: 52.20180398 | AW73: 139.4672577 | AX73: 16.35352414 | AY73: 125.5703574 | AZ73: 44.69095889 | BA73: 108.9294876
AG74: 68 | AH74: 41.7729706 | AI74: 87.32661536 | AJ74: 108.8661519 | AK74: 79.2214455 | AL74: 17.79819602 | AM74: 139.4672577 | AN74: 0.5924383059 | AO74: 89.50697058 | AP74: 74.1868765 | AQ74: 79.89036278 | AR74: 100 | AS74: 140 | AT74: 112.5434156 | AU74: 119.3426274 | AV74: 52.20180398 | AW74: 139.4672577 | AX74: 16.35352414 | AY74: 125.5703574 | AZ74: 44.69095889 | BA74: 108.9294876
AG75: 69 | AH75: 41.7729706 | AI75: 87.32661536 | AJ75: 108.8661519 | AK75: 79.2214455 | AL75: 17.79819602 | AM75: 139.4672577 | AN75: 0.5924383059 | AO75: 89.50697058 | AP75: 74.1868765 | AQ75: 79.89036278 | AR75: 100 | AS75: 140 | AT75: 112.5434156 | AU75: 119.3426274 | AV75: 52.20180398 | AW75: 139.4672577 | AX75: 16.35352414 | AY75: 125.5703574 | AZ75: 44.69095889 | BA75: 108.9294876
AG76: 70 | AH76: 41.7729706 | AI76: 87.32661536 | AJ76: 108.8661519 | AK76: 79.2214455 | AL76: 17.79819602 | AM76: 139.4672577 | AN76: 0.5924383059 | AO76: 89.50697058 | AP76: 74.1868765 | AQ76: 79.89036278 | AR76: 100 | AS76: 140 | AT76: 112.5434156 | AU76: 119.3426274 | AV76: 52.20180398 | AW76: 139.4672577 | AX76: 16.35352414 | AY76: 125.5703574 | AZ76: 44.69095889 | BA76: 108.9294876
AG77: 71 | AH77: 41.7729706 | AI77: 87.32661536 | AJ77: 108.8661519 | AK77: 79.2214455 | AL77: 17.79819602 | AM77: 139.4672577 | AN77: 0.5924383059 | AO77: 89.50697058 | AP77: 74.1868765 | AQ77: 79.89036278 | AR77: 100 | AS77: 140 | AT77: 112.5434156 | AU77: 119.3426274 | AV77: 52.20180398 | AW77: 139.4672577 | AX77: 16.35352414 | AY77: 125.5703574 | AZ77: 44.69095889 | BA77: 108.9294876
AG78: 72 | AH78: 41.7729706 | AI78: 87.32661536 | AJ78: 108.8661519 | AK78: 79.2214455 | AL78: 17.79819602 | AM78: 139.4672577 | AN78: 0.5924383059 | AO78: 89.50697058 | AP78: 74.1868765 | AQ78: 79.89036278 | AR78: 100 | AS78: 140 | AT78: 112.5434156 | AU78: 119.3426274 | AV78: 52.20180398 | AW78: 139.4672577 | AX78: 16.35352414 | AY78: 125.5703574 | AZ78: 44.69095889 | BA78: 108.9294876
AG79: 73 | AH79: 41.7729706 | AI79: 87.32661536 | AJ79: 108.8661519 | AK79: 79.2214455 | AL79: 17.79819602 | AM79: 139.4672577 | AN79: 0.5924383059 | AO79: 89.50697058 | AP79: 74.1868765 | AQ79: 79.89036278 | AR79: 100 | AS79: 140 | AT79: 112.5434156 | AU79: 119.3426274 | AV79: 52.20180398 | AW79: 139.4672577 | AX79: 16.35352414 | AY79: 125.5703574 | AZ79: 44.69095889 | BA79: 108.9294876
AG80: 74 | AH80: 41.7729706 | AI80: 87.32661536 | AJ80: 108.8661519 | AK80: 79.2214455 | AL80: 17.79819602 | AM80: 139.4672577 | AN80: 0.5924383059 | AO80: 89.50697058 | AP80: 74.1868765 | AQ80: 79.89036278 | AR80: 100 | AS80: 140 | AT80: 112.5434156 | AU80: 119.3426274 | AV80: 52.20180398 | AW80: 139.4672577 | AX80: 16.35352414 | AY80: 125.5703574 | AZ80: 44.69095889 | BA80: 108.9294876
AG81: 75 | AH81: 41.7729706 | AI81: 87.32661536 | AJ81: 108.8661519 | AK81: 79.2214455 | AL81: 17.79819602 | AM81: 139.4672577 | AN81: 0.5924383059 | AO81: 89.50697058 | AP81: 74.1868765 | AQ81: 79.89036278 | AR81: 100 | AS81: 140 | AT81: 112.5434156 | AU81: 119.3426274 | AV81: 52.20180398 | AW81: 139.4672577 | AX81: 16.35352414 | AY81: 125.5703574 | AZ81: 44.69095889 | BA81: 108.9294876
AG82: 76 | AH82: 41.7729706 | AI82: 87.32661536 | AJ82: 108.8661519 | AK82: 79.2214455 | AL82: 17.79819602 | AM82: 139.4672577 | AN82: 0.5924383059 | AO82: 89.50697058 | AP82: 74.1868765 | AQ82: 79.89036278 | AR82: 100 | AS82: 140 | AT82: 112.5434156 | AU82: 119.3426274 | AV82: 52.20180398 | AW82: 139.4672577 | AX82: 16.35352414 | AY82: 125.5703574 | AZ82: 44.69095889 | BA82: 108.9294876
AG83: 77 | AH83: 41.7729706 | AI83: 87.32661536 | AJ83: 108.8661519 | AK83: 79.2214455 | AL83: 17.79819602 | AM83: 139.4672577 | AN83: 0.5924383059 | AO83: 89.50697058 | AP83: 74.1868765 | AQ83: 79.89036278 | AR83: 100 | AS83: 140 | AT83: 112.5434156 | AU83: 119.3426274 | AV83: 52.20180398 | AW83: 139.4672577 | AX83: 16.35352414 | AY83: 125.5703574 | AZ83: 44.69095889 | BA83: 108.9294876
AG84: 78 | AH84: 41.7729706 | AI84: 87.32661536 | AJ84: 108.8661519 | AK84: 79.2214455 | AL84: 17.79819602 | AM84: 139.4672577 | AN84: 0.5924383059 | AO84: 89.50697058 | AP84: 74.1868765 | AQ84: 79.89036278 | AR84: 100 | AS84: 140 | AT84: 112.5434156 | AU84: 119.3426274 | AV84: 52.20180398 | AW84: 139.4672577 | AX84: 16.35352414 | AY84: 125.5703574 | AZ84: 44.69095889 | BA84: 108.9294876
AG85: 79 | AH85: 41.7729706 | AI85: 87.32661536 | AJ85: 108.8661519 | AK85: 79.2214455 | AL85: 17.79819602 | AM85: 139.4672577 | AN85: 0.5924383059 | AO85: 89.50697058 | AP85: 74.1868765 | AQ85: 79.89036278 | AR85: 100 | AS85: 140 | AT85: 112.5434156 | AU85: 119.3426274 | AV85: 52.20180398 | AW85: 139.4672577 | AX85: 16.35352414 | AY85: 125.5703574 | AZ85: 44.69095889 | BA85: 108.9294876
AG86: 80 | AH86: 41.7729706 | AI86: 87.32661536 | AJ86: 108.8661519 | AK86: 79.2214455 | AL86: 17.79819602 | AM86: 139.4672577 | AN86: 0.5924383059 | AO86: 89.50697058 | AP86: 74.1868765 | AQ86: 79.89036278 | AR86: 100 | AS86: 140 | AT86: 112.5434156 | AU86: 119.3426274 | AV86: 52.20180398 | AW86: 139.4672577 | AX86: 16.35352414 | AY86: 125.5703574 | AZ86: 44.69095889 | BA86: 108.9294876
